fUSD/lending_fUSD_20260131
["ID","MTS","AMOUNT","RATE_DAILY","PERIOD"]
[404101563,1769839840168,-317.1,0.00017365,2]
[404101564,1769839840178,-1300.0,0.000174,6]
[404101565,1769839840187,-151.0,0.00017443,2]
[404101566,1769839840196,-151.0,0.00017443,2]
[404101567,1769839840206,-151.0,0.00017443,2]
[404101568,1769839840215,-159.0,0.00017443,2]
[404101569,1769839840225,-159.0,0.00017443,2]
[404101572,1769839840547,-151.0,0.00017443,2]
[404101573,1769839840556,-151.0,0.00017443,2]
[404101574,1769839840566,-151.0,0.00017443,2]
[404101575,1769839840575,-151.0,0.00017443,2]
[404101576,1769839840584,-151.0,0.00017443,2]
[404101577,1769839840593,-208.48841779,0.00017443,2]
[404101578,1769839840602,-151.0,0.00017443,2]
[404101579,1769839840612,-151.0,0.00017443,2]
[404101580,1769839840621,-151.0,0.00017443,2]
[404101581,1769839840630,-317.1,0.00017444,2]
[404101582,1769839840640,-456.11173433,0.00017468,2]
[404101583,1769839840649,-2000.0,0.000175,6]
[404101584,1769839840659,-161.0,0.0001751,2]
[404101585,1769839840668,-161.0,0.0001751,2]
[404101586,1769839840677,-317.1,0.00017524,2]
[404101587,1769839840692,-1000.0,0.00017526,2]
[404101588,1769839840701,-35128.7497,0.00017581,2]
[404101589,1769839840711,-2700.0,0.000176,6]
[404101590,1769839840720,-317.1,0.00017603,2]
[404101591,1769839840729,-227.0,0.00017628,2]
[404101592,1769839840738,-229.58821508,0.0001767,2]
[404101593,1769839840747,-2562.76577346,0.0001767,2]
[404101594,1769839840756,-600.0,0.0001767,2]
[404101595,1769839840766,-500.0,0.0001767,2]
[404101596,1769839840775,-500.0,0.0001767,2]
[404101597,1769839840784,-500.0,0.0001767,2]
[404101598,1769839840793,-513.79218574,0.0001767,2]
[404101599,1769839840803,-151.0,0.0001767,2]
[404101600,1769839840812,-151.0,0.0001767,2]
[404101601,1769839840821,-151.0,0.0001767,2]
[404101602,1769839840831,-151.0,0.0001767,2]
[404101603,1769839840840,-151.0,0.0001767,2]
[404101604,1769839840850,-151.0,0.0001767,2]
[404101605,1769839840859,-1428.38747117,0.0001767,2]
[404101606,1769839840868,-151.0,0.0001767,2]
[404101607,1769839840877,-151.0,0.0001767,2]
[404101608,1769839840886,-163.0,0.0001768,2]
[404101609,1769839840896,-317.1,0.00017683,2]
[404101610,1769839840905,-180.06758509,0.00017684,2]
[404101611,1769839840915,-3400.0,0.000177,6]
[404101612,1769839840924,-150.0,0.00017726,2]
[404101613,1769839840933,-317.1,0.00017762,2]
[404101614,1769839840942,-150.0,0.00017781,2]
[404101615,1769839840951,-97264.45150671,0.00017781,2]
[404101616,1769839840960,-281.66526816,0.00017784,2]
[404101617,1769839840970,-743.31909907,0.00017784,2]
[404101618,1769839840980,-1311.30299918,0.00017784,2]
[404101619,1769839840989,-1961.63086289,0.00017784,2]
[404101620,1769839840998,-2654.1504,0.00017784,2]
[404101621,1769839841007,-180.06758508,0.00017792,2]
[404101622,1769839841017,-868.64,0.00017797,2]
[404101623,1769839841026,-1047.594,0.00017798,2]
[404101624,1769839841039,-1000.0,0.000178,2]
[404101625,1769839841048,-600.0,0.000178,6]
[404101626,1769839841058,-152.21,0.00017822,2]
[404101627,1769839841067,-150.0,0.00017822,2]
[404101628,1769839841077,-150.0,0.00017822,2]
[404101629,1769839841086,-559.46,0.00017822,2]
[404101630,1769839841095,-180.11,0.00017822,2]
[404101631,1769839841105,-559.46,0.00017822,2]
[404101632,1769839841114,-150.0,0.00017822,2]
[404101633,1769839841123,-559.46,0.00017822,2]
[404101634,1769839841133,-150.0,0.00017822,2]
[404101635,1769839841142,-559.46,0.00017822,2]
[404101636,1769839841151,-150.0,0.00017822,2]
[404101637,1769839841161,-559.07,0.00017822,2]
[404101638,1769839841170,-150.0,0.00017822,2]
[404101639,1769839841180,-150.0,0.00017836,2]
[404101640,1769839841190,-317.1,0.00017841,2]
[404101641,1769839841199,-150.0,0.0001789,2]
[404101642,1769839841209,-420.0,0.00017893,2]
[404101643,1769839841218,-500.0,0.00017899,2]
[404101644,1769839841228,-500.0,0.00017899,2]
[404101645,1769839841237,-500.0,0.00017899,2]
[404101646,1769839841246,-500.0,0.00017899,2]
[404101647,1769839841256,-500.0,0.00017899,2]
[404101648,1769839841265,-500.0,0.00017899,2]
[404101649,1769839841274,-500.0,0.00017899,2]
[404101650,1769839841284,-500.0,0.00017899,2]
[404101651,1769839841293,-500.0,0.00017899,2]
[404101652,1769839841303,-500.0,0.00017899,2]
[404101653,1769839841313,-500.0,0.00017899,2]
[404101654,1769839841322,-294.00943718,0.00017899,2]
[404101655,1769839841333,-500.0,0.00017899,2]
[404101656,1769839841343,-500.0,0.00017899,2]
[404101657,1769839841352,-157.67,0.00017899,2]
[404101658,1769839841362,-161.0,0.000179,3]
[404101659,1769839841371,-161.0,0.000179,2]
[404101660,1769839841381,-165.0,0.000179,3]
[404101661,1769839841394,-167.24,0.000179,3]
[404101662,1769839841403,-166.4642781,0.000179,2]
[404101663,1769839841413,-600.0,0.000179,6]
[404101664,1769839841423,-3211.91068597,0.000179,2]
[404101665,1769839841433,-180.06758508,0.000179,2]
[404101666,1769839841443,-265.53266258,0.000179,2]
[404101667,1769839841453,-4111.9226419,0.000179,2]
[404101668,1769839841463,-317.1,0.00017921,2]
[404101669,1769839841473,-199.0,0.00017934,2]
[404101670,1769839841483,-150.0,0.00017968,2]
[404101671,1769839841492,-152.74083956,0.00017968,2]
[404101672,1769839841502,-500.0,0.00017973,2]
[404101673,1769839841511,-500.0,0.00017973,2]
[404101674,1769839841521,-500.0,0.00017973,2]
[404101675,1769839841531,-501.68536334,0.00017973,2]
[404101676,1769839841541,-500.0,0.00017973,2]
[404101677,1769839841551,-576.50057646,0.00017973,2]
[404101678,1769839841562,-500.0,0.00017973,2]
[404101679,1769839841572,-1680.0,0.00017982,2]
[404101680,1769839841582,-165.39,0.0001799,2]
[404101681,1769839841592,-165.39,0.0001799,2]
[404101682,1769839841602,-155.268,0.00017999,2]
[404101683,1769839841612,-500.0,0.00017999,2]
[404101684,1769839841621,-500.0,0.00017999,2]
[404101685,1769839841631,-285.43134816,0.00017999,2]
[404101686,1769839841641,-500.0,0.00017999,2]
[404101687,1769839841650,-353.0521329,0.00017999,2]
[404101688,1769839841659,-561.92,0.00017999,2]
[404101689,1769839841669,-561.92,0.00017999,2]
[404101690,1769839841678,-561.92,0.00017999,2]
[404101691,1769839841687,-561.92,0.00017999,2]
[404101692,1769839841696,-561.92,0.00017999,2]
[404101693,1769839841706,-561.92,0.00017999,2]
[404101694,1769839841715,-561.92,0.00017999,2]
[404101695,1769839841724,-561.92,0.00017999,2]
[404101696,1769839841734,-561.92,0.00017999,2]
[404101697,1769839841743,-561.92,0.00017999,2]
[404101698,1769839841752,-561.92,0.00017999,2]
[404101699,1769839841762,-561.92,0.00017999,2]
[404101700,1769839841772,-561.92,0.00017999,2]
[404101701,1769839841782,-561.92,0.00017999,2]
[404101702,1769839841791,-561.92,0.00017999,2]
[404101703,1769839841801,-561.92,0.00017999,2]
[404101704,1769839841810,-561.92,0.00017999,2]
[404101705,1769839841820,-561.92,0.00017999,2]
[404101706,1769839841829,-561.92,0.00017999,2]
[404101707,1769839841840,-561.92,0.00017999,2]
[404101708,1769839841849,-561.92,0.00017999,2]
[404101709,1769839841859,-561.92,0.00017999,2]
[404101710,1769839841869,-561.92,0.00017999,2]
[404101711,1769839841878,-562.02805559,0.00017999,2]
[404101712,1769839841888,-1686.0,0.00018,2]
[404101713,1769839841898,-64148.51521468,0.00018,2]
[404101714,1769839842696,-725.33020039,0.00018,2]
[404101726,1769839844818,-151.0,0.0001635,2]
[404101727,1769839844828,-173.97946918,0.00018,2]
[404101746,1769839845869,-1077.09581276,0.00018,2]
[404101747,1769839846053,-11678.9213808,0.00018,2]
[404101748,1769839846064,-984.14314611,0.00018,2]
[404101749,1769839846075,-573.95549409,0.00018,2]
[404101750,1769839846164,-1779.5,0.00018,2]
[404101751,1769839846177,-600.86929527,0.00018,2]
[404101756,1769840775142,979.27841771,0.000209,30]
[404101757,1769840841124,-200.442947,0.00014,2]
[404101758,1769840841145,-1200.0,0.00015399,2]
[404101759,1769840841165,-250.0,0.000154,2]
[404101760,1769840841185,-2562.76577346,0.000154,2]
[404101761,1769840841205,-229.58821508,0.000154,2]
[404101762,1769840841227,-262.74421048,0.000154,2]
[404101765,1769840954092,-246.0965993,0.000154,2]
[404101778,1769841031749,-91.15919022,0.000154,2]
[404101779,1769841031759,-253.59134471,0.00015665,2]
[404101780,1769841031769,-155.75,0.00016,7]
[404101781,1769841031778,-200.0,0.00016,2]
[404101782,1769841031788,-255.9,0.0001601,2]
[404101783,1769841031797,-12.34110219,0.00016015,2]
[404101784,1769841031809,-148.52889781,0.00016015,2]
[404101785,1769841031820,-151.0,0.00016035,2]
[404101786,1769841031832,-4.72886933,0.0001604,2]
[404101787,1769841031922,-146.27113067,0.0001604,2]
[404101788,1769841031932,-151.0,0.00016062,2]
[404101789,1769841031942,-286.32,0.000163,2]
[404101790,1769841031952,-1200.0,0.00016372,2]
[404101791,1769841031962,-300.0,0.00016372,2]
[404101792,1769841031972,-500.0,0.00016373,2]
[404101793,1769841031981,-460.20817435,0.00016373,2]
[404101794,1769841031991,-500.0,0.00016373,2]
[404101795,1769841032000,-319.40810166,0.00016373,2]
[404101796,1769841032009,-500.0,0.00016373,2]
[404101797,1769841032018,-163.0,0.000164,2]
[404101798,1769841032029,-772.26,0.00016621,2]
[404101799,1769841032039,-368.62,0.00016656,2]
[404101800,1769841032050,-163.0,0.0001672,2]
[404101802,1769841032060,-500.0,0.00016794,2]
[404101804,1769841032069,-500.0,0.00016931,2]
[404101806,1769841032079,-500.0,0.00016931,2]
[404101808,1769841032089,-500.0,0.00016931,2]
[404101810,1769841032098,-513.79218574,0.00016931,2]
[404101812,1769841032107,-202.25964161,0.00016931,2]
[404101814,1769841032116,-500.0,0.00016931,2]
[404101816,1769841032126,-151.0,0.00016931,2]
[404101818,1769841032135,-151.0,0.00016931,2]
[404101820,1769841032145,-151.0,0.00016931,2]
[404101822,1769841032156,-151.0,0.00016931,2]
[404101824,1769841032165,-151.0,0.00016931,2]
[404101826,1769841032174,-151.0,0.00016931,2]
[404101828,1769841032184,-151.0,0.00016931,2]
[404101830,1769841032194,-151.0,0.00016931,2]
[404101832,1769841032203,-151.0,0.00016931,2]
[404101834,1769841032213,-151.0,0.00016931,2]
[404101836,1769841032223,-151.0,0.00016931,2]
[404101839,1769841032233,-151.0,0.00016931,2]
[404101840,1769841032242,-151.0,0.00016931,2]
[404101841,1769841032251,-151.0,0.00016931,2]
[404101842,1769841032261,-151.0,0.00016931,2]
[404101843,1769841032271,-151.0,0.00016931,2]
[404101844,1769841032280,-151.0,0.00016931,2]
[404101845,1769841032290,-250.0,0.0001694,2]
[404101846,1769841032300,-202.11400005,0.0001694,2]
[404101847,1769841032309,-6716.22965131,0.00016941,2]
[404101848,1769841032319,-5000.0,0.00016941,2]
[404101849,1769841032328,-5000.0,0.00016941,2]
[404101850,1769841032338,-5000.0,0.00016941,2]
[404101851,1769841032348,-5000.0,0.00016941,2]
[404101852,1769841032358,-200.0,0.00016986,4]
[404101853,1769841032367,-348.61,0.00016986,4]
[404101854,1769841032376,-250.0,0.00017,2]
[404101855,1769841032385,-1256.41,0.00017028,2]
[404101856,1769841032395,-165.0,0.0001704,2]
[404101857,1769841032404,-1506.86,0.00017066,2]
[404101858,1769841032413,-578.20924308,0.00017099,2]
[404101859,1769841032423,-151.0,0.00017099,2]
[404101860,1769841032433,-174.61919141,0.00017099,2]
[404101861,1769841032443,-721.12765535,0.00017099,2]
[404101862,1769841032453,-1428.38747117,0.00017099,2]
[404101863,1769841032463,-322.6107,0.00017099,2]
[404101864,1769841032472,-150.0,0.00017178,2]
[404101865,1769841032482,-381.58,0.00017178,2]
[404101866,1769841032491,-772.26,0.00017244,2]
[404101867,1769841032501,-1000.0,0.0001726,2]
[404101868,1769841032511,-600.0,0.000173,6]
[404101869,1769841032520,-500.0,0.00017389,2]
[404101870,1769841032530,-150.0,0.00017389,2]
[404101871,1769841032547,-1300.0,0.000174,6]
[404101872,1769841032557,-500.0,0.00017444,2]
[404101873,1769841032567,-150.0,0.00017444,2]
[404101874,1769841032577,-243.78218388,0.00017473,2]
[404101875,1769841032587,-500.0,0.00017473,2]
[404101876,1769841032597,-500.0,0.00017499,2]
[404101877,1769841032607,-150.0,0.00017499,2]
[404101878,1769841032618,-1900.0,0.000175,6]
[404101879,1769841032629,-500.0,0.00017528,2]
[404101880,1769841032639,-1000.0,0.00017534,2]
[404101881,1769841032649,-500.0,0.00017553,2]
[404101882,1769841032659,-150.0,0.00017553,2]
[404101883,1769841032669,-177.54,0.00017569,2]
[404101884,1769841032679,-500.0,0.00017583,2]
[404101885,1769841032689,-2600.0,0.000176,6]
[404101886,1769841032698,-500.0,0.00017608,2]
[404101887,1769841032708,-288.32277431,0.00017608,2]
[404101888,1769841032718,-500.0,0.00017637,2]
[404101889,1769841032727,-151.0,0.00017647,2]
[404101890,1769841032738,-181.08010149,0.00017647,2]
[404101891,1769841032747,-1481.23780761,0.00017647,2]
[404101892,1769841032757,-1245.69913909,0.0001765,2]
[404101893,1769841032770,-399.73818967,0.0001765,2]
[404101894,1769841032781,-1350.16253326,0.0001765,2]
[404101895,1769841032792,-999.0,0.0001765,2]
[404101896,1769841032807,-508.0,0.0001765,2]
[404101897,1769841032837,-1716.24258309,0.0001765,2]
[404101900,1769841037867,-759.86415411,0.0001765,2]
[404101901,1769841037879,-2629.97761171,0.0001765,2]
[404101902,1769841037889,-19355.80173218,0.0001765,2]
[404101903,1769841037929,-6164.26375689,0.0001765,2]
[404101904,1769841037939,-500.0,0.00017692,2]
[404101905,1769841037948,-579.4159161,0.000177,2]
[404101906,1769841038045,-143.33107681,0.000177,2]
[404101907,1769841038055,-2381.6089235,0.000177,6]
[404101908,1769841038067,-918.3910765,0.000177,6]
[404101909,1769841038077,-81.6089235,0.000177,2]
[404101911,1769841038152,-614.38108556,0.000177,2]
[404101912,1769841038163,-828.49138455,0.000177,2]
[404101913,1769841038174,-326.9124715,0.000177,2]
[404102010,1769841039971,-219258.96963489,0.000177,2]
[404102011,1769841039981,-722.74699282,0.00017722,2]
[404102012,1769841039991,-772.96,0.00017732,2]
[404102013,1769841040000,-868.64,0.00017732,2]
[404102014,1769841040010,-722.74699282,0.00017744,2]
[404102015,1769841040019,-500.0,0.00017747,2]
[404102016,1769841040028,-2328.0,0.00017747,2]
[404102017,1769841040038,-281.66526816,0.0001775,2]
[404102018,1769841040047,-743.31909907,0.0001775,2]
[404102019,1769841040056,-1311.30299918,0.0001775,2]
[404102020,1769841040066,-1961.63086289,0.0001775,2]
[404102021,1769841040075,-2654.1504,0.0001775,2]
[404102022,1769841040084,-722.74699282,0.00017767,2]
[404102023,1769841040094,-722.74699282,0.00017789,2]
[404102024,1769841040105,-234.92858,0.000178,2]
[404102025,1769841040114,-600.0,0.000178,6]
[404102026,1769841040124,-500.0,0.00017802,2]
[404102027,1769841040134,-150.0,0.00017808,2]
[404102028,1769841040143,-1819.0,0.00017808,2]
[404102029,1769841040152,-1047.594,0.00017811,2]
[404102030,1769841040162,-722.74699282,0.00017811,2]
[404102031,1769841040171,-150.0,0.00017822,2]
[404102032,1769841040181,-150.0,0.00017822,2]
[404102033,1769841040191,-150.0,0.00017822,2]
[404102034,1769841040204,-150.0,0.00017822,2]
[404102035,1769841040213,-150.0,0.00017822,2]
[404102036,1769841040225,-150.0,0.00017822,2]
[404102037,1769841040235,-722.74699282,0.00017833,2]
[404102038,1769841040246,-722.74699282,0.00017856,2]
[404102039,1769841040257,-500.0,0.00017857,2]
[404102040,1769841040267,-150.0,0.00017857,3]
[404102041,1769841040277,-250.0,0.00017863,2]
[404102042,1769841040288,-772.26,0.00017867,2]
[404102043,1769841040300,-14466.3429,0.00017873,2]
[404102044,1769841040315,-3718.05213426,0.00017873,2]
[404102045,1769841040325,-159.55318297,0.00017875,2]
[404102046,1769841040335,-722.74699282,0.00017878,2]
[404102047,1769841040345,-500.0,0.00017887,2]
[404102048,1769841040355,-500.0,0.00017887,2]
[404102049,1769841040364,-500.0,0.00017887,2]
[404102050,1769841040374,-500.0,0.00017887,2]
[404102051,1769841040386,-500.0,0.00017887,2]
[404102052,1769841040396,-500.0,0.00017887,2]
[404102053,1769841040407,-500.0,0.00017887,2]
[404102054,1769841040417,-500.0,0.00017887,2]
[404102055,1769841040428,-500.0,0.00017887,2]
[404102057,1769841040437,-500.0,0.00017887,2]
[404102059,1769841040446,-500.0,0.00017887,2]
[404102060,1769841040456,-500.0,0.00017887,2]
[404102061,1769841040466,-500.0,0.00017887,2]
[404102062,1769841040476,-500.0,0.00017887,2]
[404102063,1769841040485,-500.0,0.00017887,2]
[404102064,1769841040495,-500.0,0.00017887,2]
[404102065,1769841040504,-500.0,0.00017887,2]
[404102066,1769841040513,-500.0,0.00017887,2]
[404102067,1769841040523,-500.0,0.00017887,2]
[404102068,1769841040532,-500.0,0.00017887,2]
[404102069,1769841040541,-500.0,0.00017887,2]
[404102070,1769841040551,-500.0,0.00017887,2]
[404102071,1769841040560,-500.0,0.00017887,2]
[404102072,1769841040570,-500.0,0.00017887,2]
[404102073,1769841040580,-500.0,0.00017887,2]
[404102075,1769841040590,-500.0,0.00017887,2]
[404102076,1769841040600,-500.0,0.00017887,2]
[404102077,1769841040613,-500.0,0.00017887,2]
[404102078,1769841040622,-500.0,0.00017887,2]
[404102079,1769841040632,-383.49034409,0.00017887,2]
[404102080,1769841040642,-500.0,0.00017887,2]
[404102081,1769841040652,-500.0,0.00017887,2]
[404102082,1769841040662,-500.0,0.00017887,2]
[404102083,1769841040672,-500.0,0.00017887,2]
[404102084,1769841040682,-500.0,0.00017887,2]
[404102085,1769841040692,-500.0,0.00017887,2]
[404102086,1769841040702,-500.0,0.00017887,2]
[404102087,1769841040712,-93.2087408,0.00017887,2]
[404102088,1769841040945,-406.7912592,0.00017887,2]
[404102089,1769841040956,-500.0,0.00017887,2]
[404102090,1769841040966,-500.0,0.00017887,2]
[404102091,1769841040976,-500.0,0.00017887,2]
[404102092,1769841040985,-500.0,0.00017887,2]
[404102093,1769841040998,-500.0,0.00017887,2]
[404102094,1769841041008,-500.0,0.00017887,2]
[404102095,1769841041018,-500.0,0.00017887,2]
[404102096,1769841041028,-500.0,0.00017887,2]
[404102097,1769841041037,-500.0,0.00017887,2]
[404102098,1769841041047,-169.38051241,0.00017887,2]
[404102099,1769841041057,-500.0,0.00017887,2]
[404102100,1769841041067,-500.0,0.00017887,2]
[404102101,1769841041077,-500.0,0.00017887,2]
[404102102,1769841041086,-273.08822839,0.00017887,2]
[404102111,1769841043701,-226.91177161,0.00017887,2]
[404102112,1769841043711,-500.0,0.00017887,2]
[404102113,1769841043721,-500.0,0.00017887,2]
[404102114,1769841043730,-500.0,0.00017887,2]
[404102115,1769841043740,-500.0,0.00017887,2]
[404102116,1769841043751,-500.0,0.00017887,2]
[404102117,1769841043762,-500.0,0.00017887,2]
[404102118,1769841043771,-500.0,0.00017887,2]
[404102119,1769841043780,-500.0,0.00017887,2]
[404102120,1769841043790,-500.0,0.00017887,2]
[404102121,1769841043799,-550.0,0.00017887,2]
[404102122,1769841043810,-151.0,0.00017887,2]
[404102123,1769841043820,-177.783079,0.00017887,2]
[404102124,1769841043833,-2328.0,0.0001789,2]
[404102125,1769841043843,-228.78619097,0.00017893,2]
[404102148,1769841046078,-151.0,0.00016175,2]
[404102150,1769841046088,-150.0,0.000174,2]
[404102151,1769841046097,-191.21380903,0.00017893,2]
[404102152,1769841046107,-154.86660595,0.00017896,2]
[404102153,1769841046116,-154.86660593,0.00017897,2]
[404102154,1769841046126,-15.18998122,0.00017897,2]
[404102155,1769841046253,-139.67662471,0.00017897,2]
[404102156,1769841046263,-154.86660593,0.00017898,2]
[404102157,1769841046272,-154.86660593,0.00017898,2]
[404102158,1769841046281,-154.86660593,0.00017899,2]
[404102159,1769841046290,-154.86660593,0.00017899,2]
[404102160,1769841046299,-2625.47295271,0.000179,2]
[404102161,1769841046354,-99.96746305,0.000179,2]
[404102165,1769841342658,-215.25,0.000152,2]
[404102166,1769841992095,-223.59452171,0.00016273,2]
[404102167,1769841992125,-753.25176423,0.00016372,2]
[404102168,1769842048089,-151.0,0.00016016,2]
[404102169,1769842048126,-151.0,0.00016017,2]
[404102170,1769842048152,-446.74823577,0.00016372,2]
[404102171,1769842048172,-500.0,0.00016373,2]
[404102172,1769842048192,-500.0,0.00016373,2]
[404102173,1769842048213,-500.0,0.00016373,2]
[404102174,1769842048239,-500.0,0.00016373,2]
[404102175,1769842048264,-504.42982336,0.00016373,2]
[404102176,1769842048284,-200.0,0.00016561,2]
[404102177,1769842048307,-151.0,0.0001675,2]
[404102178,1769842048326,-151.0,0.0001675,2]
[404102179,1769842048351,-151.0,0.0001675,2]
[404102180,1769842048378,-151.0,0.0001675,2]
[404102181,1769842048398,-56.28140402,0.0001675,2]
[404102188,1769842156120,-151.0,0.0001607,2]
[404102189,1769842156143,-151.0,0.00016081,2]
[404102190,1769842166894,151.0,0.00016093,2]
[404102191,1769842184499,151.0,0.00016093,2]
[404102192,1769842200095,151.0,0.00016093,2]
[404102193,1769842217324,151.0,0.00016103,2]
[404102197,1769842231942,-286.45612779,0.00016373,2]
[404102198,1769842231953,-500.0,0.00016373,2]
[404102199,1769842231963,-642.79089811,0.00016373,2]
[404102200,1769842231973,-500.0,0.00016373,2]
[404102201,1769842231982,-407.76648186,0.00016373,2]
[404102202,1769842231992,-550.48364577,0.00016373,2]
[404102203,1769842232002,-500.0,0.00016373,2]
[404102204,1769842232011,-287.0,0.00016373,2]
[404102205,1769842232021,-1200.0,0.00016749,2]
[404102206,1769842232030,-300.0,0.00016749,2]
[404102207,1769842232039,-945.85,0.0001675,2]
[404102208,1769842232050,-94.71859598,0.0001675,2]
[404102209,1769842232060,-151.0,0.0001675,2]
[404102210,1769842232069,-151.0,0.0001675,2]
[404102211,1769842232079,-151.0,0.0001675,2]
[404102212,1769842232088,-151.0,0.0001675,2]
[404102213,1769842232098,-151.0,0.0001675,2]
[404102214,1769842232107,-151.0,0.0001675,2]
[404102215,1769842232116,-151.0,0.0001675,2]
[404102216,1769842232126,-151.0,0.0001675,2]
[404102217,1769842232136,-151.0,0.0001675,2]
[404102218,1769842232146,-151.0,0.0001675,2]
[404102219,1769842232155,-151.0,0.0001675,2]
[404102220,1769842232164,-151.0,0.0001675,2]
[404102221,1769842232173,-151.0,0.0001675,2]
[404102222,1769842232182,-151.0,0.0001675,2]
[404102223,1769842232191,-154.15756941,0.0001675,2]
[404102224,1769842232201,-5024.21364095,0.0001676,2]
[404102225,1769842232211,-1000.0,0.000168,2]
[404102226,1769842232221,-1000.0,0.00016824,2]
[404102227,1769842232233,-526.0,0.00016868,2]
[404102228,1769842232244,-528.0,0.0001692,2]
[404102229,1769842232254,-408.88544033,0.00016921,2]
[404102230,1769842232264,-1000.0,0.00016921,2]
[404102233,1769842232277,-507.05553112,0.00016921,2]
[404102234,1769842232287,-238.57137999,0.00016971,2]
[404102235,1769842232297,-356.88851644,0.00016971,2]
[404102236,1769842232306,-482.8824,0.00016971,2]
[404102237,1769842232319,-327.0,0.00016988,2]
[404102238,1769842232329,-250.0,0.00017,2]
[404102239,1769842232339,-216.53,0.00017015,2]
[404102240,1769842232350,-315.96,0.00017016,2]
[404102241,1769842232359,-945.85,0.00017024,2]
[404102242,1769842232369,-327.0,0.00017043,2]
[404102243,1769842232378,-3727.0565,0.00017064,2]
[404102244,1769842232388,-578.20924308,0.00017076,2]
[404102245,1769842232397,-576.12552574,0.00017076,2]
[404102246,1769842232406,-151.0,0.00017076,2]
[404102247,1769842232415,-3000.0,0.00017076,2]
[404102248,1769842232424,-174.61919141,0.00017076,2]
[404102249,1769842232433,-2500.0,0.00017076,2]
[404102250,1769842232442,-721.12765535,0.00017076,2]
[404102251,1769842232451,-1428.38747117,0.00017076,2]
[404102252,1769842232460,-551.47640522,0.00017076,2]
[404102253,1769842232470,-209.40437684,0.00017076,2]
[404102254,1769842232480,-250.0,0.00017076,2]
[404102255,1769842232489,-322.6107,0.00017076,2]
[404102256,1769842232499,-150.99,0.00017099,2]
[404102257,1769842232508,-217.15233878,0.00017131,2]
[404102258,1769842232519,-327.0,0.00017164,2]
[404102259,1769842232531,-225.18697532,0.00017186,2]
[404102260,1769842232540,-233.51889341,0.00017241,2]
[404102261,1769842232550,-166.66,0.00017288,2]
[404102262,1769842232563,-242.15909246,0.00017296,2]
[404102263,1769842232573,-945.85,0.00017298,2]
[404102264,1769842232584,-251.11897888,0.00017351,2]
[404102265,1769842232603,-327.0,0.00017361,2]
[404102266,1769842232614,-433.80720979,0.00017372,2]
[404102267,1769842232624,-327.0,0.00017378,2]
[404102268,1769842232633,-260.4103811,0.00017406,2]
[404102269,1769842232643,-270.0455652,0.00017461,2]
[404102270,1769842232655,-456.11173433,0.00017468,2]
[404102271,1769842232664,-555.0,0.00017475,2]
[404102272,1769842232673,-700.01972448,0.000175,2]
[404102273,1769842232682,-500.0,0.000175,3]
[404102274,1769842232691,-280.03725112,0.00017516,2]
[404102275,1769842232701,-327.0,0.00017521,2]
[404102276,1769842232710,-6147.9992,0.00017528,2]
[404102277,1769842232720,-442.00178455,0.00017552,2]
[404102278,1769842232729,-290.39862941,0.00017571,2]